bitfinex-derivatives/quotes_SOLF0:USTF0_20230103
["timestamp","ask_amount","ask_price","bid_price","bid_amount"]
[1672732252656,0.06251532,11.912,11.9,3.97375354]
[1672732253815,0.06251532,11.912,11.902,0.06036256]
[1672732266850,16.79,11.913,11.912,0.10918413]
[1672732269264,0.06680706,11.917,11.912,0.10918413]
[1672732277032,0.06680706,11.917,11.912,16.81918413]
[1672732279249,16.79,11.928,11.917,0.05653773]
[1672732280193,0.06406795,11.927,11.918,0.06251201]
[1672732280404,4.06406795,11.927,11.918,0.06251201]
[1672732281873,16.79,11.926,11.918,0.06251201]
[1672732282191,4.0,11.925,11.918,0.06251201]
[1672732283137,16.79,11.923,11.918,0.06251201]
[1672732283452,4.0,11.922,11.918,0.06251201]
[1672732283869,20.81,11.922,11.918,0.06251201]
[1672732284186,16.81,11.922,11.918,0.06251201]
[1672732290175,0.04173395,11.918,11.917,0.05653773]
[1672732303629,0.06099019,11.924,11.918,0.13860815]
[1672732305309,16.81,11.921,11.918,0.00860815]
[1672732305521,4.0,11.92,11.918,0.00860815]
[1672732306153,16.81,11.921,11.918,0.00860815]
[1672732306886,4.0,11.918,11.912,0.10918413]
[1672732307097,16.81,11.915,11.912,0.10918413]
[1672732307307,4.0,11.914,11.899,66.78]
[1672732307940,0.06156155,11.911,11.903,0.06239437]
[1672732309517,16.82156155,11.911,11.903,0.06239437]
[1672732310246,16.7,11.905,11.903,0.06239437]
[1672732310462,20.7,11.905,11.9,0.07094185]
[1672732310777,20.7,11.905,11.898,0.06415683]
[1672732310988,20.7,11.905,11.897,0.06863284]
[1672732311194,20.76713231,11.905,11.897,0.06191501]
[1672732311928,16.76713231,11.905,11.897,0.06191501]
[1672732316668,16.79,11.902,11.897,1.501e-05]
[1672732316978,4.0,11.901,11.897,1.501e-05]
[1672732318659,16.79,11.902,11.897,1.501e-05]
[1672732320552,4.0,11.904,11.897,1.501e-05]
[1672732321181,16.87713231,11.905,11.897,1.501e-05]
[1672732321394,0.06713231,11.905,11.897,1.501e-05]
[1672732327902,0.06713231,11.905,11.899,50.0]
[1672732328111,0.06713231,11.905,11.9,4.0]
[1672732329271,0.06713231,11.905,11.899,50.0]
[1672732329482,0.06713231,11.905,11.9,4.0]
[1672732330952,48.2455,11.909,11.905,0.01538316]
[1672732331268,16.81,11.912,11.905,0.01538316]
[1672732331478,50.0,11.924,11.905,0.01538316]
[1672732331479,16.76,11.914,11.905,0.01538316]
[1672732331687,4.0,11.913,11.905,0.01538316]
[1672732332109,4.06526258,11.913,11.905,0.0845271]
[1672732332317,0.06526258,11.913,11.905,0.0845271]
[1672732334836,16.65,11.911,11.905,0.0845271]
[1672732335157,16.81,11.909,11.905,0.0845271]
[1672732335477,4.0,11.908,11.895,53.6708]
[1672732336210,4.0,11.908,11.895,49.6708]
[1672732336411,0.06058252,11.906,11.897,0.06168748]
[1672732336625,16.87058252,11.906,11.897,0.06168748]
[1672732336943,16.81,11.903,11.897,0.06168748]
[1672732337257,4.0,11.902,11.897,0.06168748]
[1672732338620,16.81,11.903,11.897,0.06168748]
[1672732339571,16.76,11.901,11.897,0.06168748]
[1672732339783,4.0,11.9,11.897,0.06168748]
[1672732339991,4.0,11.9,11.894,0.07064605]
[1672732340204,4.0,11.9,11.893,0.06821074]
[1672732340513,16.82104596,11.901,11.893,0.06821074]
[1672732340938,0.06104596,11.901,11.893,0.06821074]
[1672732349764,48.6079,11.904,11.901,0.06694993]
[1672732351129,4.0,11.903,11.898,0.06979676]
[1672732351334,48.6079,11.904,11.898,0.06979676]
[1672732352704,16.81,11.905,11.898,0.06979676]
[1672732363109,16.62569169,11.905,11.898,0.06979676]
[1672732364160,16.85,11.903,11.898,0.06979676]
[1672732366576,62.6271,11.906,11.898,0.06979676]
[1672732370251,16.74,11.904,11.898,0.06979676]
[1672732370570,4.0,11.903,11.898,0.06979676]
[1672732370992,16.74,11.904,11.898,0.06979676]
[1672732376871,16.6539122,11.904,11.898,0.06979676]
[1672732380235,0.01050438,11.898,11.891,4.0]
[1672732381284,0.01050438,11.898,11.89,54.06790968]
[1672732381813,0.01050438,11.898,11.89,4.06790968]
[1672732382749,0.01050438,11.898,11.89,54.06790968]
[1672732383388,0.01050438,11.898,11.89,4.06790968]
[1672732383590,0.01050438,11.898,11.89,54.06790968]
[1672732384017,0.01050438,11.898,11.89,0.06790968]
[1672732384229,0.01050438,11.898,11.89,50.06790968]
[1672732384749,16.71050438,11.898,11.89,50.06790968]
[1672732384955,16.71050438,11.898,11.89,0.06790968]
[1672732385277,65.04940438,11.898,11.89,0.06790968]
[1672732385696,65.04940438,11.898,11.89,50.06790968]
[1672732386220,16.78,11.895,11.89,0.06790968]
[1672732386434,16.78,11.895,11.882,49.183]
[1672732386435,4.0,11.894,11.882,49.183]
[1672732387171,4.0,11.894,11.88,50.0]
[1672732387382,0.06891967,11.891,11.883,0.06527747]
[1672732389583,0.01050438,11.898,11.89,50.0]
[1672732389800,0.01050438,11.898,11.891,4.0]
[1672732390640,0.01050438,11.898,11.89,50.0]
[1672732390849,0.01050438,11.898,11.89,0.06834954]
[1672732391795,0.01050438,11.898,11.89,50.06834954]
[1672732392007,0.01050438,11.898,11.89,0.06834954]
[1672732394209,0.01050438,11.898,11.89,50.06834954]
[1672732394519,0.01050438,11.898,11.89,0.06834954]
[1672732394733,0.01050438,11.898,11.891,4.0]
[1672732401037,0.01050438,11.898,11.89,4.06834954]
[1672732403559,0.06014155,11.899,11.898,0.13877065]
[1672732403769,0.06526364,11.903,11.898,0.13877065]
[1672732404084,20.86526364,11.903,11.898,0.13877065]
[1672732404398,16.86526364,11.903,11.898,0.13877065]
[1672732415647,16.75897186,11.903,11.898,0.13877065]
[1672732419429,16.71,11.901,11.898,0.13877065]
[1672732423844,16.86,11.901,11.898,0.13877065]
[1672732430153,16.62150232,11.901,11.898,0.13877065]
[1672732431725,4.0,11.9,11.896,0.06218286]
[1672732432044,16.86,11.898,11.889,625.0]
[1672732432248,16.86,11.895,11.889,575.0]
[1672732432460,16.86,11.895,11.885,50.0416]
[1672732432665,16.86,11.895,11.889,50.0]
[1672732432881,16.86,11.895,11.89,4.0]
[1672732433822,16.86,11.895,11.888,0.06246462]
[1672732434033,0.06102606,11.896,11.888,0.06246462]
[1672732436769,0.06102606,11.896,11.889,50.0]
[1672732436980,16.75,11.895,11.888,0.06246462]
[1672732437190,4.0,11.894,11.888,0.06246462]
[1672732437503,16.75,11.895,11.888,0.06246462]
[1672732439188,0.06102606,11.896,11.888,0.06246462]
[1672732442863,16.82102606,11.896,11.888,0.06246462]
[1672732444759,0.06102606,11.896,11.888,0.06246462]
[1672732445811,16.86,11.897,11.896,0.06147411]
[1672732446022,4.0,11.896,11.889,4.0]
[1672732446234,4.0,11.896,11.884,4.0]
[1672732446861,0.06455767,11.894,11.886,0.06177658]
[1672732453164,0.09048653,11.886,11.884,4.0]
[1672732453374,4.0,11.896,11.885,4.0]
[1672732453585,16.86,11.897,11.885,4.0]
[1672732454320,0.0665804,11.895,11.887,0.06497021]
[1672732458101,16.8265804,11.895,11.887,0.06497021]
[1672732467348,16.65344757,11.895,11.887,0.06497021]
[1672732468398,16.72454705,11.895,11.887,0.06497021]
[1672732468926,16.72454705,11.895,11.879,639.2256]
[1672732468927,16.86,11.89,11.872,16.86]
[1672732469137,16.77,11.888,11.873,4.0]
[1672732469873,0.0666987,11.885,11.876,0.06754003]
[1672732475335,16.81,11.884,11.876,0.06754003]
[1672732475541,4.0,11.883,11.876,0.06754003]
[1672732475966,16.81,11.884,11.876,0.06754003]
[1672732476175,16.82,11.882,11.876,0.06754003]
[1672732476385,4.0,11.881,11.876,0.06754003]
[1672732476808,16.82,11.882,11.876,0.06754003]
[1672732482272,16.86,11.88,11.876,0.06754003]
[1672732483002,16.77573705,11.88,11.876,0.06754003]
[1672732486366,0.06407541,11.882,11.876,0.06754003]
[1672732492670,16.92407541,11.882,11.876,0.06754003]
[1672732497403,4.0,11.881,11.876,4.003e-05]
[1672732497611,4.0,11.881,11.87,575.0]
[1672732498349,16.92407541,11.882,11.87,575.0]
[1672732498660,16.92407541,11.882,11.872,0.06457351]
[1672732508964,0.06407541,11.882,11.872,0.06457351]
[1672732512012,47.0997,11.884,11.882,0.14120757]
[1672732512324,4.0,11.883,11.873,4.0]
[1672732512743,16.86,11.885,11.873,4.0]
[1672732512953,16.81,11.887,11.873,4.0]
[1672732513166,0.06183874,11.883,11.875,0.06204109]
[1672732524929,16.81,11.887,11.883,0.01714644]
[1672732525142,16.86,11.884,11.883,0.01714644]
[1672732525772,4.0,11.883,11.872,4.0]
[1672732525983,0.06661474,11.882,11.873,0.06747546]
[1672732532814,16.92661474,11.882,11.873,0.06747546]
[1672732533552,16.77,11.879,11.873,0.06747546]
[1672732538173,4.0,11.878,11.873,0.06747546]
[1672732538488,16.86,11.875,11.873,0.06747546]
[1672732538698,16.86,11.875,11.87,4.07094018]
[1672732539327,0.06313149,11.878,11.87,4.07094018]
[1672732539539,16.86,11.879,11.878,0.17580552]
[1672732546471,16.86,11.879,11.874,0.06871744]
[1672732558774,16.86,11.879,11.874,1.744e-05]
[1672732558986,4.0,11.878,11.874,1.744e-05]
[1672732559402,16.86,11.879,11.874,1.744e-05]
[1672732561397,4.0,11.878,11.874,1.744e-05]
[1672732561605,16.86,11.875,11.874,1.744e-05]
[1672732561822,16.86,11.875,11.87,0.06694954]
[1672732562032,16.86,11.875,11.868,0.06708347]
[1672732562347,16.86,11.875,11.867,0.06056528]
[1672732562556,16.9241169,11.875,11.867,0.07112981]
[1672732565502,0.0641169,11.875,11.867,0.07112981]
[1672732565923,0.0641169,11.875,11.868,50.0]
[1672732566134,0.0641169,11.875,11.869,4.0]
[1672732566971,0.0641169,11.875,11.868,54.0]
[1672732567181,0.0641169,11.875,11.867,0.07112981]
[1672732570649,16.76,11.874,11.867,0.07112981]
[1672732571069,4.0,11.873,11.867,0.07112981]
[1672732571491,16.76,11.874,11.867,0.07112981]
[1672732572541,16.86,11.871,11.867,0.07112981]
[1672732572753,4.0,11.87,11.867,0.07112981]
[1672732572962,3.90875229,11.87,11.864,0.06151399]
[1672732573166,16.92615601,11.871,11.863,0.06139499]
[1672732578741,16.86,11.866,11.858,50.0]
[1672732578951,16.86,11.866,11.859,4.0]
[1672732579475,16.86,11.865,11.858,50.0]
[1672732580000,16.86,11.865,11.859,4.0]
[1672732580210,16.86,11.865,11.858,50.0]
[1672732580420,16.86,11.865,11.859,4.0]
[1672732581997,0.06929378,11.866,11.859,4.0]
[1672732584725,0.06929378,11.866,11.858,4.0]
[1672732585359,0.06929378,11.866,11.858,54.0]
[1672732587145,0.06929378,11.866,11.858,50.0]
[1672732588511,0.06929378,11.866,11.859,4.0]
[1672732592299,16.71,11.87,11.866,0.01938596]
[1672732592925,16.71,11.869,11.866,0.01938596]
[1672732595031,16.64,11.869,11.866,0.01938596]
[1672732597440,16.64,11.867,11.866,0.01938596]
[1672732600175,16.78,11.87,11.866,0.01938596]
[1672732602167,16.79,11.868,11.863,0.06618525]
[1672732602385,16.72,11.864,11.855,4.0]
[1672732602800,16.72,11.864,11.858,50.0]
[1672732603007,16.72,11.864,11.859,4.0]
[1672732603854,0.06607248,11.866,11.859,4.0]
[1672732604799,0.06607248,11.866,11.857,0.06612843]
[1672732605004,0.06607248,11.866,11.858,50.0]
[1672732605218,0.06607248,11.866,11.859,4.0]
[1672732606793,0.06607248,11.866,11.858,50.0]
[1672732607005,0.06607248,11.866,11.857,4.06612843]
[1672732607322,0.06607248,11.866,11.858,50.0]
[1672732607634,0.06607248,11.866,11.859,4.0]
[1672732609001,0.06607248,11.866,11.858,4.0]
[1672732609950,0.06607248,11.866,11.858,54.0]
[1672732610155,0.06607248,11.866,11.858,4.0]
[1672732610367,0.06607248,11.866,11.858,50.0]
[1672732610577,0.06607248,11.866,11.859,4.0]
[1672732611099,0.06607248,11.866,11.858,4.0]
[1672732611314,16.63,11.865,11.857,0.06612843]
[1672732611524,16.79,11.863,11.857,0.06612843]
[1672732614249,16.8,11.863,11.857,0.06612843]
[1672732615405,16.72767085,11.863,11.857,0.06612843]
[1672732628341,16.5463293,11.863,11.857,0.06612843]
[1672732635696,16.86607248,11.866,11.858,50.0]
[1672732635906,0.06607248,11.866,11.859,4.0]
[1672732639266,16.86607248,11.866,11.857,0.06612843]
[1672732642627,16.7394182,11.866,11.857,0.06612843]
[1672732643575,16.80770631,11.866,11.857,0.06612843]
[1672732647461,0.06828811,11.866,11.858,50.0]
[1672732647672,0.06828811,11.866,11.859,4.0]
[1672732649456,0.06828811,11.866,11.857,0.06612843]
[1672732649662,0.06828811,11.866,11.859,4.0]
[1672732650405,0.06828811,11.866,11.859,3.82212178]
[1672732660072,16.65,11.876,11.86,16.64]
[1672732660283,16.65,11.876,11.868,50.0]
[1672732660493,16.65,11.876,11.869,4.0]
[1672732663852,16.77,11.876,11.869,4.0]
[1672732666797,0.06321374,11.877,11.869,4.0]
[1672732667003,16.77,11.885,11.869,4.0]
[1672732667213,16.77,11.885,11.869,54.4682]
[1672732668058,0.0673377,11.881,11.873,0.06483231]
[1672732679407,0.00260946,11.881,11.873,0.06483231]
[1672732690440,67.03,11.908,11.88,66.72]
[1672732690650,67.03,11.908,11.887,50.0]
[1672732690963,4.0,11.906,11.888,4.0]
[1672732691491,4.0,11.906,11.893,0.06344247]
[1672732691700,16.75,11.897,11.893,0.06344247]
[1672732694017,16.87,11.897,11.893,0.06344247]
[1672732694531,16.87,11.9,11.893,0.06344247]
[1672732695588,16.75,11.906,11.893,0.06344247]
[1672732695800,49.4394,11.907,11.895,16.89525111]
[1672732696001,49.4394,11.907,11.897,50.0]
[1672732696324,49.4394,11.907,11.898,0.06156242]
[1672732696533,0.07075008,11.906,11.898,3.86169588]
[1672732697586,0.07075008,11.906,11.898,3.92294425]
[1672732699162,0.07075008,11.906,11.898,0.06124837]
[1672732709670,0.00091341,11.906,11.898,4.06124837]
[1672732711249,0.00091341,11.906,11.899,16.83]
[1672732711461,0.00091341,11.906,11.905,50.0]
[1672732711669,49.6276,11.916,11.905,50.0]
[1672732711877,49.6276,11.916,11.906,54.06288013]
[1672732712194,49.6276,11.916,11.907,4.0]
[1672732712824,16.73,11.915,11.906,54.06288013]
[1672732713138,16.83,11.913,11.906,0.06288013]
[1672732713551,16.83,11.913,11.906,50.06288013]
[1672732713762,16.82,11.914,11.906,50.06288013]
[1672732714715,16.82,11.914,11.906,0.06288013]
[1672732715137,16.82,11.914,11.906,50.06288013]
[1672732715760,16.82,11.914,11.906,0.06288013]
[1672732716398,16.82,11.914,11.906,50.06288013]
[1672732716818,16.82,11.914,11.906,0.06288013]
[1672732717025,16.82,11.914,11.906,50.06288013]
[1672732717974,16.82,11.911,11.906,0.06288013]
[1672732718394,4.0,11.91,11.906,0.06288013]
[1672732718815,49.9674,11.91,11.906,0.06288013]
[1672732719026,16.83,11.909,11.906,0.06288013]
[1672732719230,16.83,11.909,11.903,0.06090138]
[1672732719445,16.83,11.909,11.902,0.06999495]
[1672732719651,16.83,11.909,11.901,0.0646922]
[1672732722064,16.7422025,11.907,11.901,0.0646922]
[1672732722279,4.0,11.906,11.901,0.0646922]
[1672732722807,16.7422025,11.907,11.901,0.0646922]
[1672732723122,16.81,11.909,11.901,0.0646922]
[1672732725541,64.8649,11.912,11.901,0.0646922]
[1672732725750,16.83,11.912,11.906,50.0]
[1672732726065,16.83,11.912,11.907,4.0]
[1672732726484,16.83,11.912,11.905,0.06923053]
[1672732726694,16.79,11.911,11.905,0.06923053]
[1672732730590,16.69,11.907,11.905,0.06923053]
[1672732730798,16.69,11.907,11.902,0.0682162]
[1672732733108,16.68,11.906,11.902,0.0682162]
[1672732733315,16.75,11.907,11.9,0.06956688]
[1672732733529,16.75,11.907,11.899,0.06584274]
[1672732733950,16.83,11.909,11.899,0.06584274]
[1672732734160,16.83,11.909,11.9,0.07082584]
[1672732736156,16.63393768,11.909,11.9,0.07082584]
[1672732741089,4.0,11.907,11.9,0.07082584]
[1672732741933,47.8841,11.908,11.9,0.07082584]
[1672732742461,16.81,11.906,11.9,0.07082584]
[1672732742667,16.75,11.901,11.9,2.584e-05]
[1672732742878,16.75,11.901,11.887,50.0519]
[1672732743616,0.06761048,11.898,11.89,0.06125031]
[1672732748657,16.89761048,11.898,11.89,0.06125031]
[1672732748866,16.83,11.896,11.89,0.06125031]
[1672732749289,4.0,11.895,11.89,0.06125031]
[1672732749711,0.01438571,11.89,11.886,50.0]
[1672732750026,0.01438571,11.89,11.887,4.0]
[1672732750545,0.01438571,11.89,11.881,4.0]
[1672732750756,0.07888081,11.89,11.885,50.0]
[1672732750966,0.07888081,11.89,11.886,4.0]
[1672732751811,0.07888081,11.89,11.885,50.0]
[1672732752437,0.07888081,11.89,11.884,0.06738964]
[1672732753073,0.07888081,11.89,11.885,50.0]
[1672732753386,0.07888081,11.89,11.886,4.0]
[1672732754231,0.07888081,11.89,11.884,0.06738964]
[1672732755805,54.0,11.917,11.885,4.0]
[1672732756018,16.69,11.902,11.886,16.81]
[1672732756231,4.0,11.901,11.887,4.0]
[1672732756754,16.69,11.902,11.887,4.0]
[1672732756957,0.07040309,11.898,11.89,0.0641877]
[1672732757379,0.07040309,11.898,11.895,50.0]
[1672732757588,0.06755692,11.901,11.896,4.0]
[1672732757802,0.06033102,11.903,11.896,4.0]
[1672732759278,0.06033102,11.903,11.894,0.06145035]
[1672732759698,0.06033102,11.903,11.895,50.0]
[1672732760217,0.06033102,11.903,11.894,0.06145035]
[1672732760649,16.83,11.899,11.894,0.06145035]
[1672732763378,16.69,11.895,11.885,50.0]
[1672732763589,16.68,11.892,11.88,48.8385]
[1672732763800,16.68,11.892,11.881,4.0]
[1672732764431,0.06917803,11.891,11.882,0.0701701]
[1672732764641,4.06917803,11.891,11.882,0.0701701]
[1672732765480,16.68,11.889,11.882,0.0701701]
[1672732765691,4.0,11.888,11.882,0.0701701]
[1672732766428,16.68,11.889,11.882,0.0701701]
[1672732767165,16.89917803,11.891,11.882,0.0701701]
[1672732767368,0.06917803,11.891,11.882,0.0701701]
[1672732769263,0.06917803,11.891,11.885,50.0]
[1672732769469,0.06917803,11.891,11.886,4.0]
[1672732770733,0.06917803,11.891,11.884,4.0]
[1672732770944,0.06917803,11.891,11.886,4.0]
[1672732772101,0.06917803,11.891,11.885,50.0]
[1672732772415,0.06917803,11.891,11.886,4.0]
[1672732772627,0.06917803,11.891,11.884,4.0]
[1672732773360,0.06917803,11.891,11.884,50.0]
[1672732773572,0.06917803,11.891,11.885,4.0]
[1672732774516,0.06917803,11.891,11.884,54.0]
[1672732774721,0.06917803,11.891,11.884,50.0]
[1672732774935,0.06917803,11.891,11.883,48.2865]
[1672732776725,16.75,11.896,11.891,0.1285058]
[1672732778716,4.0,11.895,11.883,48.2865]
[1672732778926,4.0,11.895,11.876,575.0]
[1672732779136,4.0,11.895,11.877,47.7173]
[1672732779458,16.75,11.896,11.884,50.0]
[1672732779668,0.07095709,11.894,11.886,0.07078462]
[1672732781244,16.83,11.903,11.887,4.0]
[1672732781454,4.0,11.902,11.887,4.0]
[1672732781980,16.83,11.903,11.887,4.0]
[1672732782399,0.0612608,11.899,11.894,50.0]
[1672732782609,0.06707681,11.901,11.895,4.0]
[1672732782820,0.0655352,11.902,11.895,51.1796]
[1672732783030,0.06358017,11.903,11.895,51.1796]
[1672732783243,0.06280446,11.903,11.895,51.23991312]
[1672732784713,0.06280446,11.903,11.895,47.23991312]
[1672732784922,0.06280446,11.903,11.895,0.06031312]
[1672732792907,16.7,11.901,11.895,0.06031312]
[1672732793116,4.0,11.9,11.895,0.06031312]
[1672732793853,20.7,11.901,11.895,0.06031312]
[1672732794057,16.7,11.901,11.895,0.06031312]
[1672732795220,67.3885,11.902,11.895,0.06031312]
[1672732795744,67.29382977,11.902,11.895,0.06031312]
[1672732797006,50.46382977,11.902,11.895,0.06031312]
[1672732797530,0.06280446,11.903,11.895,0.06031312]
[1672732799844,0.06280446,11.903,11.895,1.312e-05]
[1672732800159,20.7,11.902,11.886,16.83]
[1672732800474,16.75,11.9,11.887,4.0]
[1672732800679,4.0,11.899,11.887,4.0]
[1672732801314,0.06927363,11.897,11.889,0.06384943]
[1672732804676,50.0,11.896,11.889,0.06384943]
[1672732804881,16.69,11.894,11.878,16.83]
[1672732805096,16.69,11.894,11.879,4.0]
[1672732805306,4.0,11.893,11.879,4.0]
[1672732805622,4.0,11.893,11.878,16.83]
[1672732805829,4.0,11.891,11.877,47.8951]
[1672732806040,0.06788777,11.889,11.881,0.07077255]
[1672732806877,50.0,11.886,11.859,63.24]
[1672732807092,625.0,11.886,11.854,50.0]
[1672732807408,4.0,11.885,11.864,4.0]
[1672732807932,50.0,11.876,11.855,4.0]
[1672732808249,4.0,11.875,11.855,4.0]
[1672732808455,4.0,11.875,11.85,67.29]
[1672732808773,4.0,11.875,11.853,50.0]
[1672732808978,0.06827738,11.868,11.86,0.06085604]
[1672732809193,0.06360494,11.868,11.86,0.06624067]
[1672732812660,4.0,11.879,11.863,50.0]
[1672732812869,4.0,11.879,11.861,4.0]
[1672732813818,0.06696995,11.874,11.866,0.06899358]
[1672732814029,0.06686248,11.874,11.866,0.06899358]
[1672732819916,50.0,11.886,11.867,4.0]
[1672732820337,4.0,11.891,11.867,4.0]
[1672732820550,4.0,11.891,11.873,50.0]
[1672732820761,0.06322558,11.886,11.878,0.06387943]
[1672732820963,0.06291645,11.886,11.878,0.06387943]
[1672732825905,49.5833,11.892,11.879,4.0]
[1672732826848,50.0,11.906,11.879,4.0]
[1672732826849,0.067058,11.89,11.882,50.0]
[1672732827062,53.3893,11.904,11.883,4.0]
[1672732827376,4.0,11.903,11.883,4.0]
[1672732828008,0.06234751,11.897,11.889,0.06444034]
[1672732828219,0.06910579,11.897,11.889,0.06263742]
[1672732833270,49.3893,11.904,11.89,4.0]
[1672732834422,49.3893,11.904,11.893,0.06588331]
[1672732836309,4.0,11.915,11.893,0.06588331]
[1672732836519,49.9597,11.914,11.9,0.06406763]
[1672732836734,4.0,11.913,11.903,0.06570191]
[1672732837049,49.9597,11.914,11.904,0.06611243]
[1672732837260,49.9597,11.914,11.905,0.06689344]
[1672732837472,50.0,11.926,11.905,0.06228931]
[1672732837682,50.0,11.926,11.911,0.06365717]
[1672732837683,4.0,11.925,11.911,0.06365717]
[1672732837995,50.0,11.926,11.893,4.0]
[1672732837996,50.0,11.926,11.914,0.06135354]
[1672732838310,46.7748,11.924,11.916,0.06768185]
[1672732838524,46.7748,11.924,11.916,0.06027625]
[1672732839046,50.0,11.936,11.916,0.06027625]
[1672732839362,4.0,11.935,11.922,0.06794277]
[1672732839567,4.0,11.935,11.924,0.06804572]
[1672732839779,0.81116924,11.937,11.925,0.06172989]
[1672732839984,0.81116924,11.938,11.927,0.06654185]
[1672732840305,0.81116924,11.938,11.928,0.06548761]
[1672732840514,0.81116924,11.938,11.929,0.06233974]
[1672732840831,0.81116924,11.93,11.929,0.06855045]
[1672732841042,0.81116924,11.93,11.925,0.06835937]
[1672732841250,0.81116924,11.928,11.923,0.06724375]
[1672732841462,0.81116924,11.928,11.921,0.06647606]
[1672732841672,0.81116924,11.928,11.92,0.0666098]
[1672732841988,0.81116924,11.928,11.92,0.06031622]
[1672732842512,0.81116924,11.938,11.92,0.06031622]
[1672732842823,0.81116924,11.938,11.925,0.06426753]
[1672732843033,0.81116924,11.938,11.927,0.06620073]
[1672732843352,0.81116924,11.938,11.928,0.0674233]
[1672732843561,0.81116924,11.938,11.929,0.06898359]
[1672732843767,0.81116924,11.938,11.929,0.06423526]
[1672732845976,46.7748,11.941,11.929,0.06423526]
[1672732846192,0.81116924,11.938,11.929,0.06423526]
[1672732846400,4.0,11.94,11.929,0.06423526]
[1672732846928,1159.58265803,12.034,11.929,0.06423526]
[1672732847139,877.0,11.978,11.931,50.0]
[1672732847453,48.6462,11.989,11.953,49.18883076]
[1672732847663,0.81116924,11.978,11.953,49.18883076]
[1672732847872,0.81116924,11.958,11.933,49.18883076]
[1672732848082,0.81116924,11.958,11.924,4.0]
[1672732848296,4.0,11.987,11.943,49.18883076]
[1672732848502,0.81116924,11.959,11.944,4.0]
[1672732848922,0.81116924,11.959,11.947,0.06421615]
[1672732849134,0.06190595,11.956,11.947,0.06421615]
[1672732849654,0.00190595,11.956,11.947,0.06421615]
[1672732850284,0.81116924,11.949,11.947,0.06421615]
[1672732850501,0.81116924,11.949,11.933,49.18883076]
[1672732850708,0.81116924,11.949,11.937,0.06864505]
[1672732851972,0.81116924,11.959,11.937,0.06864505]
[1672732852285,0.81116924,11.959,11.944,0.06063089]
[1672732852501,0.81116924,11.959,11.947,0.06345654]
[1672732852816,0.81116924,11.959,11.949,0.06664075]
[1672732853028,0.81116924,11.959,11.95,0.06102606]
[1672732853340,0.81116924,11.959,11.95,0.06791287]
[1672732853549,0.81116924,11.969,11.95,0.06791287]
[1672732853754,0.81116924,11.969,11.944,4.0]
[1672732853755,0.81116924,11.959,11.955,0.06732834]
[1672732853965,0.81116924,11.959,11.953,0.06622277]
[1672732854177,0.81116924,11.954,11.952,0.06483551]
[1672732854388,0.81116924,11.959,11.949,0.06693253]
[1672732854599,0.81116924,11.959,11.95,0.06991795]
[1672732855019,4.0,11.984,11.95,0.06991795]
[1672732855020,0.81116924,11.951,11.95,0.06991795]
[1672732855227,0.81116924,11.951,11.938,4.0]
[1672732856170,0.06686458,11.949,11.94,0.06246195]
[1672732856911,0.81116924,11.941,11.94,0.06246195]
[1672732857225,0.81116924,11.941,11.936,0.0683629]
[1672732857436,0.81116924,11.941,11.934,0.07062926]
[1672732857856,0.0685616,11.943,11.934,0.07062926]
[1672732858481,0.0685616,11.943,11.934,4.07062926]
[1672732861846,0.0685616,11.943,11.942,12.39]
[1672732862055,877.0,11.955,11.942,12.39]
[1672732862376,877.0,11.955,11.945,12.46]
[1672732862689,0.81116924,11.95,11.945,12.46]
[1672732862901,0.07062731,11.952,11.945,12.46]
[1672732863109,0.81116924,11.95,11.945,12.46]
[1672732863322,0.0607266,11.953,11.946,4.0]
[1672732863525,0.07008283,11.954,11.945,0.06353807]
[1672732863741,0.06385164,11.954,11.945,0.06353807]
[1672732864578,0.06385164,11.954,11.947,12.39]
[1672732864787,0.06385164,11.954,11.948,4.0]